bitfinex/quotes_SOLUSD_20250207
["timestamp","ask_amount","ask_price","bid_price","bid_amount"]
[1738925551564,1.845245,197.24,197.23,0.03]
[1738925551742,27.08925962,197.24,197.23,0.03]
[1738925552646,13.67741109,197.24,197.23,0.03]
[1738925554687,27.08925962,197.24,197.23,0.03]
[1738925560762,32.15915962,197.24,197.23,0.03]
[1738925562295,27.08925962,197.24,197.23,0.03]
[1738925563086,15.25709353,197.24,197.23,0.03]
[1738925564481,1.845245,197.24,197.23,0.03]
[1738925572671,13.67741109,197.24,197.23,0.03]
[1738925572872,27.08925962,197.24,197.23,0.03]
[1738925577878,15.25709353,197.24,197.23,0.03]
[1738925578081,1.845245,197.24,197.23,0.03]
[1738925580884,27.08925962,197.24,197.23,0.03]
[1738925583995,32.15915962,197.24,197.23,0.03]
[1738925585503,27.08925962,197.24,197.23,0.03]
[1738925586709,32.15915962,197.24,197.23,0.03]
[1738925588605,27.08925962,197.24,197.23,0.03]
[1738925588804,32.15915962,197.24,197.23,0.03]
[1738925592616,34.82035962,197.24,197.23,0.03]
[1738925592906,35.82035962,197.24,197.23,0.03]
[1738925595903,17.25709353,197.23,197.22,0.03]
[1738925596208,15.25709353,197.16,197.15,0.03]
[1738925596407,27.08925962,197.16,197.15,0.03]
[1738925597189,28.08925962,197.16,197.15,0.03]
[1738925597395,29.08925962,197.16,197.15,0.03]
[1738925598017,34.16125962,197.16,197.15,0.03]
[1738925598217,34.16125962,197.16,197.15,0.0001]
[1738925598512,1.845245,197.04,197.03,0.03]
[1738925598689,27.08925962,197.04,197.03,0.03]
[1738925598892,1.845245,197.04,197.03,0.03]
[1738925600528,1.845245,197.04,197.03,11.86216609]
[1738925601029,1.845245,197.04,197.03,0.03]
[1738925601489,1.845245,197.04,197.03,5.1053]
[1738925602304,1.0,197.04,197.03,5.1053]
[1738925602537,1.845245,197.04,197.03,5.1053]
[1738925603605,1.845245,197.04,197.03,0.03]
[1738925604011,1.0,197.04,197.03,11.86216609]
[1738925604915,1.0,197.06,197.03,196.56216609]
[1738925605106,1.0,197.06,197.04,11.83216609]
[1738925606119,1.0,197.05,197.04,11.83216609]
[1738925606316,1.0,197.06,197.04,16.90726609]
[1738925606512,1.0,197.05,197.04,16.90726609]
[1738925607317,1.0,197.05,197.04,5.0751]
[1738925607494,1.845245,197.05,197.04,5.0751]
[1738925607699,1.845245,197.05,197.03,184.73]
[1738925607700,1.0,197.04,197.03,189.8053]
[1738925608210,1.0,197.04,197.03,86.2053]
[1738925608415,1.845245,197.04,197.03,86.2053]
[1738925608623,1.0,197.04,197.03,86.2053]
[1738925608794,1.0,197.06,197.03,98.03746609]
[1738925608994,1.0,197.06,197.05,11.83216609]
[1738925609412,1.0,197.07,197.05,11.83216609]
[1738925609622,1.0,197.08,197.06,11.83216609]
[1738925609999,1.0,197.08,197.03,202.4937]
[1738925610000,1.845245,197.07,197.05,11.83216609]
[1738925610199,1.0,197.06,197.05,184.7]
[1738925610403,1.0,197.06,197.05,189.7748]
[1738925610603,0.845245,197.06,197.05,189.7748]
[1738925610807,1.0,197.06,197.05,189.7748]
[1738925611209,1.845245,197.06,197.05,189.7748]
[1738925611409,1.845245,197.06,197.05,184.7]
[1738925613503,1.845245,197.06,197.05,189.7748]
[1738925614123,1.845245,197.06,197.05,5.0748]
[1738925615237,1.845245,197.04,197.03,0.03]
[1738925622530,1.0,197.04,197.03,0.03]
[1738925623233,1.845245,197.04,197.03,0.03]
[1738925623801,15.25709353,197.04,197.03,0.03]
[1738925624003,1.845245,197.04,197.03,0.03]
[1738925625836,13.67741109,197.04,197.03,0.03]
[1738925628725,1.845245,197.04,197.03,0.03]
[1738925629726,1.0,197.05,197.03,115.46216609]
[1738925629931,1.0,197.05,197.04,11.83216609]
[1738925630853,1.0,197.05,197.04,16.90726609]
[1738925631233,1.845245,197.11,197.07,20.0]
[1738925631416,0.845245,197.11,197.1,11.83216609]
[1738925631848,0.845245,197.11,197.07,204.7]
[1738925631849,0.845245,197.08,197.07,216.53216609]
[1738925632443,0.845245,197.09,197.07,216.53216609]
[1738925632833,0.845245,197.09,197.08,5.074]
[1738925633038,0.845245,197.09,197.08,16.90616609]
[1738925633454,0.845245,197.1,197.08,16.90616609]
[1738925633651,0.845245,197.1,197.09,11.83216609]
[1738925635157,0.845245,197.1,197.09,16.90596609]
[1738925636862,1.845245,197.1,197.09,16.90596609]
[1738925637036,0.845245,197.1,197.09,16.90596609]
[1738925637355,1.845245,197.1,197.09,16.90596609]
[1738925638649,0.845245,197.11,197.09,16.90596609]
[1738925638860,0.845245,197.11,197.1,11.83216609]
[1738925639162,0.845245,197.14,197.13,20.0]
[1738925639454,0.845245,197.14,197.13,31.83216609]
[1738925639756,1.845245,197.14,197.13,31.83216609]
[1738925639955,1.845245,197.14,197.13,11.83216609]
[1738925640260,0.845245,197.12,197.11,11.83216609]
[1738925640553,1.845245,197.12,197.11,11.83216609]
[1738925640956,1.845245,197.12,197.1,184.7]
[1738925641161,1.845245,197.11,197.1,81.1]
[1738925642259,0.845245,197.09,197.08,11.83216609]
[1738925642435,1.845245,197.09,197.06,16.90646609]
[1738925642630,1.0,197.08,197.06,16.90646609]
[1738925642830,1.0,197.08,197.07,11.83216609]
[1738925643757,1.845245,197.08,197.07,16.90646609]
[1738925644234,1.845245,197.08,197.07,5.0743]
[1738925644854,0.845245,197.07,197.06,5.0745]
[1738925645069,0.845245,197.07,197.06,16.90666609]
[1738925650056,0.845245,197.08,197.06,16.90666609]
[1738925650359,0.845245,197.08,197.07,11.83216609]
[1738925651553,0.845245,197.11,197.07,201.60646609]
[1738925651753,0.845245,197.11,197.1,31.83216609]
[1738925653157,1.845245,197.11,197.1,11.83216609]
[1738925653457,1.845245,197.11,197.1,36.90566609]
[1738925653657,1.845245,197.11,197.1,25.0735]
[1738925654238,1.845245,197.11,197.1,36.90566609]
[1738925654959,0.845245,197.11,197.1,36.90566609]
[1738925655559,1.845245,197.13,197.1,36.90566609]
[1738925655760,1.845245,197.14,197.12,11.83216609]
[1738925656059,0.908245,197.15,197.13,11.83216609]
[1738925656362,1.908245,197.15,197.13,11.83216609]
[1738925656547,0.845245,197.14,197.13,11.83216609]
[1738925657063,1.845245,197.14,197.13,11.83216609]
[1738925657445,0.845245,197.14,197.13,16.90486609]
[1738925657671,1.845245,197.14,197.13,16.90486609]
[1738925658663,1.0,197.14,197.13,16.90486609]
[1738925658960,1.845245,197.14,197.13,16.90486609]
[1738925659760,0.063,197.15,197.13,16.90486609]
[1738925659761,1.908245,197.15,197.13,16.90486609]
[1738925659940,1.063,197.15,197.14,16.90466609]
[1738925660462,1.908245,197.15,197.14,16.90466609]
[1738925660853,1.063,197.15,197.14,16.90466609]
[1738925661355,1.908245,197.15,197.14,5.0725]
[1738925662270,1.908245,197.15,197.14,11.83216609]
[1738925663874,1.908245,197.15,197.14,16.90466609]
[1738925664269,1.908245,197.15,197.14,5.0725]
[1738925664844,1.908245,197.15,197.14,16.90466609]
[1738925666973,1.908245,197.15,197.14,5.0725]
[1738925667148,1.845245,197.13,197.12,189.773]
[1738925667656,1.845245,197.13,197.12,86.173]
[1738925668267,1.845245,197.13,197.12,98.00516609]
[1738925669562,1.845245,197.13,197.12,86.173]
[1738925673579,1.845245,197.13,197.12,5.073]
[1738925673781,1.845245,197.13,197.12,16.90516609]
[1738925674084,1.0,197.13,197.12,16.90516609]
[1738925676179,1.845245,197.13,197.12,16.90516609]
[1738925676782,1.845245,197.13,197.12,16.93516609]
[1738925677283,1.0,197.13,197.12,16.93516609]
[1738925677450,0.063,197.15,197.14,20.0]
[1738925677655,0.063,197.15,197.14,196.53216609]
[1738925678790,0.063,197.15,197.14,201.60466609]
[1738925680279,1.845245,197.2,197.16,11.83216609]
[1738925680471,1.845245,197.2,197.19,11.83216609]
[1738925680877,1.0,197.2,197.19,11.83216609]
[1738925681079,0.845245,197.21,197.19,11.83216609]
[1738925681279,0.845245,197.21,197.2,11.83216609]
[1738925681461,1.845245,197.21,197.2,11.83216609]
[1738925682175,0.845245,197.21,197.2,11.83216609]
[1738925682350,0.845245,197.21,197.2,16.90306609]
[1738925683183,1.845245,197.21,197.2,16.90306609]
[1738925684886,1.845245,197.21,197.2,5.0709]
[1738925688762,1.908245,197.21,197.2,16.90306609]
[1738925695303,1.908245,197.21,197.19,98.00336609]
[1738925695595,1.845245,197.2,197.19,86.1712]
[1738925697678,1.845245,197.2,197.19,81.1]
[1738925703399,1.0,197.19,197.17,189.7717]
[1738925703704,1.845245,197.18,197.17,189.7717]
[1738925706684,1.845245,197.18,197.17,201.60386609]
[1738925707882,1.908245,197.21,197.17,201.60386609]
[1738925708097,0.063,197.21,197.2,59.16083045]
[1738925709495,0.0001,197.21,197.2,249.43173045]
[1738925709793,0.063,197.24,197.23,20.0]
[1738925710124,0.063,197.24,197.23,31.83216609]
[1738925710481,0.063,197.24,197.23,32.59235418]
[1738925711003,0.063,197.28,197.26,20.0]
[1738925711204,0.063,197.28,197.27,32.59230286]
[1738925712501,0.063,197.28,197.27,217.79230286]
[1738925712689,0.063,197.28,197.27,217.03216609]
[1738925713298,0.063,197.28,197.27,222.10126609]
[1738925713690,0.845245,197.34,197.32,11.83216609]
[1738925713891,0.845245,197.34,197.33,11.83216609]
[1738925714197,1.845245,197.34,197.33,11.83216609]
[1738925715209,1.063,197.35,197.33,17.65972107]
[1738925715390,1.063,197.35,197.34,11.83216609]
[1738925715790,1.063,197.35,197.34,93.43216609]
[1738925716607,1.063,197.35,197.34,99.25936429]
[1738925717401,1.908245,197.35,197.34,81.6]
[1738925720994,1.908245,197.35,197.34,98.49946609]
[1738925721308,1.063,197.35,197.34,98.49946609]
[1738925723619,0.063,197.35,197.34,98.49946609]
[1738925723922,0.063,197.35,197.34,202.09946609]
[1738925724922,1.063,197.35,197.34,202.09946609]
[1738925725225,0.063,197.35,197.34,202.09946609]
[1738925728626,1.063,197.35,197.34,202.09946609]
[1738925730241,1.908245,197.35,197.34,190.2673]
[1738925730835,1.908245,197.35,197.34,202.09946609]
[1738925732732,0.908245,197.35,197.34,202.09946609]
[1738925732937,1.908245,197.35,197.34,202.09946609]
[1738925735742,1.063,197.35,197.34,202.09946609]
[1738925736034,1.908245,197.35,197.34,190.2673]
[1738925736234,1.908245,197.35,197.34,81.6]
[1738925737848,1.908245,197.35,197.34,93.43216609]
[1738925738346,1.908245,197.35,197.34,86.6673]
[1738925741821,1.908245,197.35,197.34,81.6]
[1738925746952,1.908245,197.35,197.34,93.43216609]
[1738925747158,0.063,197.35,197.34,202.09946609]
[1738925748258,0.908245,197.35,197.34,202.09946609]
[1738925748447,1.908245,197.35,197.34,202.09946609]
[1738925748762,0.063,197.35,197.34,202.09946609]
[1738925748971,1.063,197.35,197.34,202.09946609]
[1738925749262,1.908245,197.35,197.34,202.09946609]
[1738925750662,1.063,197.35,197.34,202.09946609]
[1738925750856,1.063,197.35,197.34,98.49946609]
[1738925751662,1.908245,197.35,197.34,98.49946609]
[1738925754563,1.908245,197.35,197.34,81.6]
[1738925758870,1.845245,197.29,197.28,0.03]
[1738925759168,13.67741109,197.29,197.28,81.63]
[1738925759350,1.845245,197.29,197.28,81.63]
[1738925761970,1.0,197.29,197.28,98.53106609]
[1738925762170,1.0,197.3,197.28,98.53106609]
[1738925762361,1.845245,197.3,197.29,11.83216609]
[1738925762681,1.845245,197.3,197.28,98.53106609]
[1738925762876,1.845245,197.3,197.29,185.2]
[1738925764486,1.845245,197.3,197.29,190.2686]
[1738925765885,0.845245,197.33,197.29,202.10076609]
[1738925766181,1.845245,197.33,197.32,11.83216609]
[1738925766377,1.845245,197.33,197.3,0.76002248]
[1738925766378,1.0,197.32,197.3,11.83216609]
[1738925766674,0.845245,197.3,197.29,202.10076609]
[1738925768481,1.0,197.32,197.31,20.0]
[1738925768773,1.0,197.32,197.31,31.83216609]
[1738925769551,1.845245,197.33,197.31,31.83216609]
[1738925769859,1.845245,197.33,197.32,16.90006609]
[1738925770559,0.845245,197.33,197.32,16.90006609]
[1738925770881,0.063,197.35,197.34,20.0]
[1738925771051,0.063,197.35,197.34,114.19204832]
[1738925771255,0.063,197.35,197.34,113.43216609]
[1738925771655,0.063,197.35,197.34,118.49946609]
[1738925774278,0.0001,197.35,197.34,222.09946609]
[1738925775203,0.0001,197.36,197.34,222.09946609]
[1738925775482,0.0001,197.36,197.35,12.59188809]
[1738925776073,0.0001,197.36,197.35,11.83216609]
[1738925776279,0.0001,197.36,197.35,16.89926609]
[1738925777181,1.0001,197.36,197.35,16.89926609]
[1738925777385,1.845345,197.36,197.35,86.6671]
[1738925779594,0.845345,197.36,197.35,98.49926609]
[1738925780170,0.0001,197.36,197.35,98.49926609]
[1738925781087,1.0001,197.36,197.35,98.49926609]
[1738925781386,1.845345,197.36,197.35,98.49926609]
[1738925781890,1.0001,197.36,197.35,98.49926609]
[1738925783474,1.845345,197.36,197.35,98.49926609]
[1738925783672,1.0001,197.36,197.35,98.49926609]
[1738925784467,1.0001,197.36,197.35,99.25912885]
[1738925785179,0.0001,197.36,197.35,202.85912885]
[1738925785381,0.0001,197.36,197.35,202.09926609]
[1738925793510,0.845345,197.36,197.35,202.09926609]
[1738925795402,0.845345,197.36,197.35,98.49926609]
[1738925796302,0.845345,197.36,197.35,98.52926609]
[1738925796996,0.0001,197.36,197.35,98.52926609]
[1738925797198,0.0001,197.36,197.35,99.28913677]
[1738925799574,0.063,197.41,197.38,20.0]
[1738925799775,0.063,197.41,197.4,11.83216609]
[1738925800107,0.063,197.41,197.4,16.89796609]
[1738925803901,1.908245,197.41,197.4,16.89796609]
[1738925804301,1.908245,197.41,197.4,202.09796609]
[1738925806099,1.908245,197.41,197.4,185.2]
[1738925806994,1.908245,197.41,197.4,202.09796609]
[1738925809008,1.908245,197.41,197.4,190.2658]
[1738925809195,1.908245,197.41,197.4,202.09796609]
[1738925809404,1.063,197.41,197.4,202.09796609]
[1738925809594,0.063,197.41,197.4,202.09796609]
[1738925809905,1.908245,197.41,197.4,202.09796609]
[1738925811000,0.063,197.41,197.4,202.09796609]
[1738925811302,1.908245,197.41,197.4,202.09796609]
[1738925811901,0.063,197.41,197.4,202.09796609]
[1738925814910,1.908245,197.41,197.4,202.09796609]
[1738925816711,1.063,197.41,197.4,202.09796609]
[1738925817791,0.063,197.41,197.4,202.09796609]
[1738925818207,1.063,197.41,197.4,202.09796609]
[1738925818805,0.063,197.41,197.4,202.09796609]
[1738925820406,1.063,197.41,197.4,202.09796609]
[1738925820908,1.908245,197.41,197.4,202.09796609]
[1738925821417,1.908245,197.41,197.4,185.2]
[1738925824918,1.063,197.41,197.4,202.09796609]
[1738925825122,0.063,197.41,197.4,202.09796609]
[1738925826034,0.063,197.44,197.43,20.0]
[1738925826216,0.063,197.44,197.43,222.85657047]
[1738925826424,0.063,197.44,197.43,222.09716609]
[1738925832231,0.063,197.44,197.43,93.43216609]
[1738925832411,1.908245,197.44,197.43,81.6]
[1738925834137,1.908245,197.44,197.4,185.2]
[1738925834317,1.0,197.41,197.4,185.2]
[1738925834517,1.845245,197.41,197.4,185.2]
[1738925834712,1.845245,197.41,197.4,197.03216609]
[1738925835016,1.845245,197.41,197.4,202.09796609]
[1738925836233,1.845245,197.41,197.4,190.2658]
[1738925836405,1.845245,197.41,197.4,185.2]
[1738925837037,13.67741109,197.41,197.4,185.2]
[1738925837717,1.845245,197.37,197.36,81.63]
[1738925839442,13.67741109,197.37,197.36,0.03]
[1738925840647,18.74401109,197.37,197.36,0.03]
[1738925841311,32.15585962,197.37,197.36,0.03]
[1738925841707,33.67135962,197.37,197.36,0.03]
[1738925842015,26.08925962,197.36,197.35,0.03]
[1738925842212,27.08925962,197.36,197.35,0.03]
[1738925842763,32.15605962,197.36,197.35,0.03]
[1738925842915,32.15605962,197.36,197.34,0.03]
[1738925843112,25.24401462,197.35,197.34,0.03]
[1738925843316,26.08925962,197.35,197.34,0.03]
[1738925843636,27.08925962,197.35,197.34,0.03]
[1738925844034,32.15635962,197.35,197.34,0.03]
[1738925844538,13.67741109,197.35,197.34,0.03]
[1738925846036,1.845245,197.35,197.34,0.03]
[1738925846439,1.845245,197.35,197.34,93.46216609]
[1738925846646,1.845245,197.36,197.34,100.11758429]
[1738925846839,0.845245,197.35,197.34,100.11758429]
[1738925847042,1.0,197.35,197.34,100.11758429]
[1738925848145,1.845245,197.35,197.34,86.6973]
[1738925853352,1.0,197.35,197.34,86.6973]
[1738925853731,1.0,197.35,197.34,105.18488429]
[1738925855850,0.845245,197.37,197.34,105.18488429]
[1738925856031,1.0,197.37,197.36,18.48758429]
[1738925856740,1.845245,197.37,197.35,19.2474449]
[1738925856943,1.0,197.36,197.35,18.48758429]
[1738925857142,1.0,197.36,197.34,105.18488429]
[1738925857655,1.0,197.35,197.34,105.18488429]
[1738925857961,1.0,197.35,197.34,208.78488429]
[1738925859053,1.845245,197.35,197.34,190.2973]
[1738925861961,1.845245,197.35,197.34,185.23]
[1738925862461,20.33282929,197.35,197.34,185.23]
[1738925863162,20.33282929,197.35,197.34,0.03]
[1738925863659,40.44397782,197.35,197.34,0.03]
[1738925865754,40.50697782,197.35,197.34,0.03]
[1738925872270,20.39582929,197.35,197.34,0.03]
[1738925872564,1.908245,197.35,197.34,0.03]
[1738925872952,13.74576137,197.35,197.34,0.03]
[1738925874672,1.908245,197.35,197.34,0.03]
[1738925880361,18.81286137,197.35,197.34,0.03]
[1738925882472,13.74576137,197.35,197.34,0.03]
[1738925884164,1.908245,197.35,197.34,0.03]
[1738925890856,15.32009353,197.35,197.34,0.03]
[1738925891055,32.2247099,197.35,197.34,0.03]
[1738925892597,33.7265099,197.35,197.34,0.03]
[1738925894709,34.7265099,197.35,197.34,0.03]
[1738925895013,15.25709353,197.29,197.28,0.03]
[1738925895170,28.6539099,197.29,197.28,0.03]
[1738925895876,33.7225099,197.29,197.28,0.03]
[1738925896399,34.7225099,197.29,197.28,0.03]
[1738925898101,33.7225099,197.29,197.28,0.03]
[1738925900315,27.0946099,197.29,197.28,0.03]
[1738925900472,13.68276137,197.29,197.28,0.03]
[1738925900669,20.35537282,197.29,197.28,0.03]
[1738925900996,33.76722135,197.29,197.28,0.03]
[1738925902999,38.83582135,197.29,197.28,0.03]
[1738925904177,39.83582135,197.29,197.28,0.03]
[1738925904369,122.93582135,197.29,197.28,0.03]
[1738925905876,121.93582135,197.29,197.28,0.03]
[1738925906295,122.93582135,197.29,197.28,0.03]
[1738925909210,1.845245,197.19,197.18,81.6]
[1738925909783,20.35537282,197.19,197.18,81.6]
[1738925911684,20.35537282,197.19,197.16,0.03]
[1738925911891,1.0,197.17,197.16,0.03]
[1738925913311,1.845245,197.17,197.16,0.03]
[1738925913490,1.845245,197.17,197.16,18.54012782]
[1738925913694,1.845245,197.17,197.16,0.03]
[1738925916910,15.25709353,197.17,197.16,0.03]
[1738925917105,33.76722135,197.17,197.16,0.03]
[1738925917302,38.83892135,197.17,197.16,0.03]
[1738925921709,39.83892135,197.17,197.16,0.03]
[1738925921929,42.38152135,197.17,197.16,0.03]
[1738925922509,42.38152135,197.17,197.16,0.0001]
[1738925922714,0.845245,197.13,197.12,0.03]
[1738925922887,29.12809621,197.13,197.12,0.03]
[1738925923311,34.20079621,197.13,197.12,0.03]
[1738925923806,34.20079621,197.13,197.11,0.03]
[1738925923807,17.25709353,197.12,197.11,0.03]
[1738925924009,76.61210693,197.12,197.11,0.03]
[1738925924396,36.25709353,197.09,197.03,81.63]
[1738925924717,54.81495937,197.09,197.03,0.03]
[1738925925289,60.88875937,197.09,197.03,0.03]
[1738925925788,60.88875937,197.09,197.08,0.0001]
[1738925925987,1.845245,197.04,197.03,0.03]
[1738925926212,33.81495937,197.04,197.03,0.03]
[1738925929604,15.25709353,197.04,197.03,0.03]
[1738925930211,1.845245,197.04,197.03,0.03]
[1738925930915,6.845245,197.04,197.03,0.03]
[1738925931114,25.40311084,197.04,197.03,0.03]
[1738925931294,38.81495937,197.04,197.03,0.03]
[1738925932215,43.89005937,197.04,197.03,0.03]
[1738925940029,20.25709353,197.04,197.03,0.03]
[1738925940610,38.81495937,197.04,197.03,0.03]
[1738925941121,43.89005937,197.04,197.03,0.03]
[1738925941944,38.81495937,197.04,197.03,0.03]
[1738925942619,43.89005937,197.04,197.03,0.03]
[1738925943433,38.81495937,197.04,197.03,0.03]
[1738925943820,43.89005937,197.04,197.03,0.03]
[1738925944017,1.845245,196.97,196.96,81.63]
[1738925944206,15.25709353,196.97,196.96,0.03]
[1738925945410,27.14042334,196.97,196.96,0.03]
[1738925945801,32.21732334,196.97,196.96,0.03]
[1738925949013,33.21732334,196.97,196.96,0.03]
[1738925949216,32.21732334,196.97,196.96,0.03]
[1738925950535,33.21732334,196.97,196.96,0.03]
[1738925950722,33.72702334,196.97,196.96,0.03]
[1738925951032,32.21732334,196.97,196.96,0.03]
[1738925952138,34.21732334,196.97,196.96,0.03]
[1738925955138,32.21732334,196.97,196.96,0.03]
[1738925956434,15.25709353,196.97,196.96,0.03]
[1738925956738,32.21732334,196.97,196.96,0.03]
[1738925957235,1.845245,196.97,196.96,0.03]
[1738925957929,13.72857481,196.97,196.96,0.03]
[1738925958127,27.14042334,196.97,196.96,0.03]
[1738925958324,32.21732334,196.97,196.96,0.03]
[1738925959538,1.845245,196.97,196.96,0.03]
[1738925961029,13.72857481,196.97,196.96,0.03]
[1738925961541,1.845245,196.97,196.96,0.03]
[1738925962423,13.72857481,196.97,196.96,0.03]
[1738925963520,1.845245,196.97,196.96,0.03]
[1738925968267,6.845245,196.97,196.96,0.03]
[1738925973552,6.0,196.97,196.96,0.03]
[1738925973759,6.0,196.97,196.96,11.91332981]
[1738925973963,5.0,196.97,196.96,11.91332981]
[1738925974471,5.0,196.97,196.96,197.11332981]
[1738925975269,5.0,196.97,196.96,202.19042981]
[1738925975858,0.063,197.03,196.99,20.0]
[1738925976057,0.063,197.03,197.02,11.88332981]
[1738925976364,1.908245,197.03,197.02,11.88332981]
[1738925976672,1.908245,197.03,197.01,11.88332981]
[1738925976862,1.845245,197.01,196.99,135.48332981]
[1738925977058,1.845245,197.0,196.99,123.6]
[1738925977257,1.845245,197.0,196.99,108.6763]
[1738925977474,0.063,197.03,196.96,100.9591]
[1738925977475,1.845245,196.98,196.96,18.54952981]
[1738925977652,1.845245,196.98,196.96,127.22662981]
[1738925977853,1.0,196.97,196.96,127.22662981]
[1738925978561,1.845245,196.97,196.96,108.7071]
[1738925979176,1.845245,196.97,196.96,103.63]
[1738925980063,1.845245,196.97,196.96,0.03]
[1738925981182,32.21732334,196.97,196.96,0.03]
[1738925984956,33.77092334,196.97,196.96,0.03]
[1738925985181,34.77092334,196.97,196.96,0.03]
[1738925985422,35.77092334,196.97,196.96,0.03]
[1738925988978,41.81412334,196.97,196.96,0.03]
[1738925992103,1.845245,196.84,196.83,100.19802981]
[1738925993301,1.845245,196.84,196.83,86.7105]
[1738925994093,0.845245,196.84,196.83,86.7105]
[1738925994300,1.845245,196.84,196.83,86.7105]
[1738925994800,1.845245,196.84,196.83,81.63]
[1738925995103,1.845245,196.84,196.83,86.7105]
[1738925995995,1.845245,196.84,196.83,98.59382981]
[1738925996987,1.0,196.84,196.83,98.59382981]
[1738925997301,1.845245,196.84,196.83,98.59382981]
[1738925997701,1.845245,196.84,196.83,81.63]
[1738925999009,1.845245,196.84,196.83,86.7105]
[1738925999990,1.845245,196.84,196.83,81.63]
[1738926000177,1.845245,196.84,196.83,0.03]
[1738926001314,1.845245,196.84,196.83,16.99382981]
[1738926001473,1.845245,196.84,196.83,5.1105]
[1738926001678,1.845245,196.84,196.83,0.03]
[1738926002499,15.25709353,196.84,196.83,0.03]
[1738926003082,1.845245,196.84,196.83,0.03]
[1738926003299,1.0,196.84,196.83,11.91332981]
[1738926003481,1.845245,196.84,196.83,11.91332981]
[1738926003686,1.845245,196.84,196.83,0.03]
[1738926003979,1.845245,196.84,196.83,5.1105]
[1738926004499,1.845245,196.84,196.83,0.03]
[1738926005007,1.0,196.84,196.83,11.91332981]
[1738926005682,1.0,196.85,196.83,11.91332981]
[1738926005885,1.0,196.85,196.84,11.88332981]
[1738926006187,1.0,196.85,196.84,16.96352981]
[1738926006504,1.0,196.86,196.84,16.96352981]
[1738926006693,1.0,196.86,196.85,11.88332981]
[1738926007396,1.0,196.88,196.85,11.88332981]
[1738926007596,1.845245,196.9,196.87,11.88332981]
[1738926007791,1.845245,196.9,196.89,11.88332981]
[1738926008293,1.845245,196.9,196.89,16.96222981]
[1738926009310,1.845245,196.91,196.89,16.96222981]
[1738926009606,1.845245,196.91,196.9,11.88332981]
[1738926010789,1.0,196.91,196.9,11.88332981]
[1738926010989,1.845245,196.91,196.9,11.88332981]
[1738926011409,1.845245,196.91,196.9,16.96202981]
[1738926012511,1.0,196.91,196.9,120.56202981]
[1738926013009,1.845245,196.91,196.9,120.56202981]
[1738926013211,1.0,196.91,196.9,120.56202981]
[1738926015322,1.0,196.94,196.9,120.56202981]
[1738926015489,0.063,196.96,196.93,11.88332981]
[1738926015692,0.063,196.96,196.95,11.88332981]
[1738926016595,1.063,196.96,196.95,11.88332981]
[1738926016998,1.845245,196.94,196.93,185.2]
[1738926018511,1.845245,196.93,196.92,16.96142981]
[1738926019386,1.0,196.93,196.92,16.96142981]
[1738926020712,1.845245,196.93,196.92,16.96142981]
[1738926021303,1.845245,196.93,196.92,16.99142981]
[1738926022219,1.845245,196.93,196.92,5.1081]
[1738926023104,1.845245,196.93,196.92,11.91332981]
[1738926023494,1.0,196.93,196.92,11.91332981]
[1738926023713,0.063,196.96,196.92,11.91332981]
[1738926023714,1.063,196.96,196.92,11.91332981]
[1738926024013,1.063,196.96,196.95,11.88332981]
[1738926024216,0.063,196.96,196.95,11.88332981]
[1738926024522,1.063,196.96,196.95,11.88332981]
[1738926025617,0.063,196.96,196.95,16.96072981]
[1738926025805,0.063,196.96,196.95,120.56072981]
[1738926029002,0.063,196.96,196.95,202.16072981]